Cogmind - Beta 9.6 @@@ ROGUE MODE // 2020.07.28 @ 14:16:04 Player: Finestep Result: Destroyed by P-80 Master with Gamma Rifle Performance ------------- Evolutions (7) 3500 Regions Visited (28) 5600 Robots Destroyed (453) 2265 Value Destroyed (18783) 18783 Prototype IDs (67) 1340 Alien Tech Used (1) 200 Bonus (15833) 15833 TOTAL SCORE: 47521 Bonus ------- High Alert Combat Kills 3341 Follower Combat Kills 2713 Network Hubs Disabled 200 Met Data Miner 300 Met Imprinter 300 Destroyed Z-Imprinter 1000 Triggered Deep Caves Wall 1000 Exposed GOLEM Chamber 2000 Met Warlord at Base 500 MAIN.C Attacked Warlord 500 Warlord Defense Kill 388 Built Enhanced Grunts 300 Met R17 at Cetus 500 Met R17 at Research 2000 Met Sigix 2000 Friendly Fire -1209 Cogmind --------- Core Integrity 0/1300 Matter 261/300 Energy 95/1300 System Corruption 11% Temperature Cool (4) Movement Walking (156) Ox1 Location -3/Quarantine Parts ------- > --- POWER (2) -------- Vortex Chain Reactor > --- PROPULSION (3) --- Enhanced Armored Leg Myomer Leg Assembled Alloy Leg > --- UTILITY (14) ----- Large Storage Unit Large Storage Unit High-capacity Storage Unit Improved Energy Well Surveybot 24 Chip Advanced Targeting Computer Advanced Target Analyzer Experimental Armor Integrity Analyzer Advanced Remote Shield Improved Dynamic Insulation System > --- WEAPON (2) ------- (None) > --- INVENTORY (24) --- Experimental Heat Sink Advanced Cooling System Long-range Terrain Scanner Advanced Particle Charger Layered Heavy Armor Plating Medium Regenerative Plating Phase Redirector Improved Recalibrator GOLEM Unit GOLEM Unit Subatomic Replicator Linear Accelerator Gamma Bomb Array Sigix Terminator Power Sword Peak State ------------ > --- POWER ------------ Light Antimatter Reactor Light Particle Reactor > --- PROPULSION ------- Myomer Leg Assembled Alloy Leg Assembled Alloy Leg > --- UTILITY ---------- Large Storage Unit Large Storage Unit High-capacity Storage Unit Assembled Biocell Array Surveybot 24 Chip Advanced Targeting Computer Advanced Target Analyzer Advanced Core Analyzer Experimental Armor Integrity Analyzer Medium Regenerative Plating Phase Armor GOLEM Unit > --- WEAPON ----------- Assembled Focal Cannon Assembled Focal Cannon > --- INVENTORY -------- Light Antimatter Reactor Vortex Chain Reactor Enhanced Armored Leg Experimental Heat Sink Advanced Cooling System Improved Energy Well Long-range Terrain Scanner Advanced Particle Charger Layered Heavy Armor Plating Light Regenerative Plating Advanced Remote Shield Improved Dynamic Insulation System Improved Recalibrator GOLEM Unit GOLEM Unit Enhanced Gauss Cannon Linear Accelerator Gamma Bomb Array Power Sword [Rating: 172] Favorites ----------- Power Micro Fission Core Engine Heavy Deuterium Engine Power Core Micro Fission Core Reactor Antimatter Reactor Propulsion Carbon-fiber Leg Treads Light Treads Leg Carbon-fiber Leg Wheel Wheel Utility Large Storage Unit Device Advanced Cooling System Storage Large Storage Unit Processor Advanced Targeting Computer Hackware Advanced System Shield Protection Light Regenerative Plating Artifact Phase Armor Weapon Improved EM Pulse Cannon Energy Gun Shock Rifle Energy Cannon Improved EM Pulse Cannon Ballistic Gun Assault Rifle Ballistic Cannon Enhanced Gauss Cannon Launcher Advanced EMP Blaster Special Weapon Mining Laser Slashing Weapon Power Sword Build | -11 -10 -10 -10 -9 -8 -7 -7 -7 -7 -7 -6 -6 -6 -6 -6 -5 -5 -5 -5 -5 -5 -4 -4 -4 -4 -3 -3 -3 ------- Run | Scr Mat Min Exi Min Mat Fac Low Low Zio Dee Pro Fac Low Low Dat Pro Fac Ext Cet Arc Hub Fac Upp Upp War Pro Res Qua Slots Evolved 14 | . . . . . 4 2 . . . . . 2 . . . . 2 . . . . 2 . . . . 2 . Power 1 | . . . . . . . . . . . . 1 . . . . . . . . . . . . . . . . Propulsion 1 | . . . . . 1 . . . . . . . . . . . . . . . . . . . . . . . Utility 12 | . . . . . 3 2 . . . . . 1 . . . . 2 . . . . 2 . . . . 2 . Weapon . | . . . . . . . . . . . . . . . . . . . . . . . . . . . . . Parts Attached 553 | 8 12 8 . 3 52 42 4 4 3 50 . 59 10 4 2 15 63 15 22 10 29 75 3 2 8 8 14 28 Power 41 | 1 1 . . . 4 2 . . . 3 . 5 . 1 . 2 4 2 3 . 1 2 . 1 1 . 3 5 Engine 13 | 1 1 . . . 4 2 . . . 2 . 2 . 1 . . . . . . . . . . . . . . Core 11 | . . . . . . . . . . . . 1 . . . 1 4 2 1 . 1 . . 1 . . . . Reactor 17 | . . . . . . . . . . 1 . 2 . . . 1 . . 2 . . 2 . . 1 . 3 5 Propulsion 89 | 2 2 . . . 13 8 1 1 . 8 . 5 . . . 4 9 4 7 . 4 14 . . 1 1 2 3 Treads 10 | 1 1 . . . 7 . . . . . . . . . . . . . . . . 1 . . . . . . Leg 75 | . . . . . 4 8 1 1 . 8 . 5 . . . 4 9 4 7 . 4 13 . . 1 1 2 3 Wheel 4 | 1 1 . . . 2 . . . . . . . . . . . . . . . . . . . . . . . Hover . | . . . . . . . . . . . . . . . . . . . . . . . . . . . . . Flight . | . . . . . . . . . . . . . . . . . . . . . . . . . . . . . Utility 209 | 2 4 . . . 8 15 1 . 3 20 . 15 6 . . 4 26 6 3 7 18 41 1 . 5 3 9 12 Device 107 | . . . . . 2 4 . . . 8 . 6 4 . . 2 16 2 2 7 7 32 . . 3 2 6 4 Storage 30 | 2 4 . . . 1 2 1 . . 3 . 3 . . . . 2 2 . . 1 4 . . 1 . 3 1 Processor 11 | . . . . . . 5 . . 1 . . . . . . . . . . . . 2 . . . 1 . 2 Hackware 5 | . . . . . . 1 . . . . . 1 . . . . 2 . . . 1 . . . . . . . Protection 55 | . . . . . 5 3 . . 2 9 . 5 2 . . 2 6 2 1 . 9 3 1 . 1 . . 4 Artifact 1 | . . . . . . . . . . . . . . . . . . . . . . . . . . . . 1 Weapon 214 | 3 5 8 . 3 27 17 2 3 . 19 . 34 4 3 2 5 24 3 9 3 6 18 2 1 1 4 . 8 Energy Gun 19 | 1 3 . . . 6 1 . 1 . 2 . . . . . . 4 . . 1 . . . . . . . . Energy Cannon 86 | . 1 . . 1 2 8 . 1 . 10 . 22 2 1 1 3 12 2 5 1 4 8 . 1 . . . 1 Ballistic Gun 31 | 2 1 5 . 1 12 4 1 1 . 1 . . . . . . 2 . . . 1 . . . . . . . Ballistic Cannon 19 | . . . . . . . . . . . . . . 2 1 . 4 . . . 1 4 1 . . 2 . 4 Launcher 37 | . . 3 . 1 3 1 1 . . 4 . 6 2 . . 2 2 1 4 . . 2 . . 1 1 . 3 Special Weapon 3 | . . . . . 3 . . . . . . . . . . . . . . . . . . . . . . . Impact Weapon . | . . . . . . . . . . . . . . . . . . . . . . . . . . . . . Slashing Weapon 19 | . . . . . 1 3 . . . 2 . 6 . . . . . . . 1 . 4 1 . . 1 . . Piercing Weapon . | . . . . . . . . . . . . . . . . . . . . . . . . . . . . . Special Melee Weapon . | . . . . . . . . . . . . . . . . . . . . . . . . . . . . . Unidentified Prototypes 37 | . . . . . 4 2 . . . 13 . 1 . . . . 4 . 1 . 2 4 . . 3 . . 3 Parts Lost 72 | . 4 . . . 12 . . . . . . 6 3 2 . 3 5 2 2 2 1 10 . 1 2 1 1 15 Power 13 | . . . . . 3 . . . . . . 2 . 1 . 1 1 . . . . 1 . . . . 1 3 Propulsion 11 | . 1 . . . 4 . . . . . . 1 . . . . . . . . . 2 . . 1 . . 2 Utility 26 | . . . . . 2 . . . . . . 2 3 . . 1 2 2 1 1 . 5 . . 1 . . 6 Weapon 22 | . 3 . . . 3 . . . . . . 1 . 1 . 1 2 . 1 1 1 2 . 1 . 1 . 4 Highest Loss Streak 6 | . 2 . . . 2 . . . . . . 1 3 1 . 2 4 2 1 2 1 6 . 1 2 1 1 6 Average Slot Usage (%) 98 | . 99 100 100 100 98 100 100 100 100 96 92 98 99 98 86 99 99 99 98 98 94 96 100 100 99 99 95 90 Engine 5 | . 14 14 14 14 8 7 7 7 7 6 7 6 13 11 13 8 . . . . . . . . . . . . Core 2 | . . . . . . . . . . . . 1 . . . 1 7 11 7 11 11 8 5 5 5 5 1 . Reactor 1 | . . . . . . . . . . . . 4 . . . 2 2 . 2 . . 1 5 5 5 5 7 6 Treads 1 | . 14 14 14 14 8 . . . . . . . . . . . . . . . . . . . . . . . Leg 16 | . . . . . 13 23 23 23 23 22 23 19 20 20 20 20 16 16 17 17 16 14 15 15 15 14 14 13 Wheel 1 | . 14 14 14 14 3 . . . . . . . . . . . . . . . . . . . . . . . Device 11 | . . . . . 7 12 7 7 7 7 7 9 13 20 20 13 18 16 12 16 12 16 15 15 15 15 16 12 Storage 21 | . 28 28 28 28 27 23 23 23 23 23 23 20 20 20 20 20 17 20 20 17 17 18 21 21 21 16 16 19 Processor 7 | . . . . . . 9 15 15 13 7 7 6 6 6 6 6 5 5 5 5 5 10 15 15 15 19 19 20 Protection 9 | . . . . . 10 7 7 7 8 11 7 9 6 6 6 12 12 13 16 17 18 15 10 10 9 10 9 4 Energy Gun 1 | . 9 . . . 5 2 . . . . . . . . . . 1 . . 3 . . . . . . . . Energy Cannon 7 | . 3 7 . 13 1 5 7 10 7 12 15 12 12 9 . 5 6 10 9 4 2 4 5 5 5 3 7 6 Ballistic Gun 3 | . 15 20 28 14 10 5 6 3 7 1 . . . . . . . . . . . . . . . . . . Ballistic Cannon 1 | . . . . . . . . . . . . . . 3 . 6 2 . . . 3 2 1 5 4 4 . 1 Naked Turns . | . . . . . . . . . . . . . . . . . . . . . . . . . . . . . Heaviest Build 180 | 14 73 73 70 72 120 94 94 98 103 103 97 110 108 108 108 126 141 113 120 113 114 124 124 133 139 129 152 180 Greatest Support 85 | 20 20 10 10 10 60 45 48 48 48 80 80 80 72 72 72 72 76 65 84 84 84 84 70 70 70 70 85 85 Greatest Overweight (x) 11 | 2 7 7 6 7 11 2 2 2 2 2 1 2 1 1 1 2 3 2 2 1 2 2 1 1 2 1 2 5 Average Overweight (x) 1 | . 4 6 6 6 2 1 1 1 1 1 1 1 1 1 1 1 1 1 1 1 1 1 1 1 1 1 1 1 Largest Inventory Capacity 40 | 8 20 20 20 20 28 40 24 24 24 24 24 24 24 24 24 24 24 24 24 24 24 24 24 24 24 24 24 24 Average Capacity 23 | 7 16 20 20 20 27 24 24 24 24 24 24 24 24 24 24 24 24 24 24 24 24 24 24 24 24 24 24 24 Most Carried 28 | 6 20 20 20 20 28 27 24 24 24 24 24 24 24 24 24 24 24 24 24 24 24 24 21 23 24 24 24 24 Average Carried 23 | 3 14 20 20 19 26 23 24 23 23 23 24 23 23 23 24 23 23 23 23 23 23 23 21 20 23 22 22 23 Final Capacity 28 | 8 20 20 20 20 28 24 24 24 24 24 24 24 24 24 24 24 24 24 24 24 24 24 24 24 24 24 24 24 Final Carried 28 | 6 20 20 20 20 28 24 24 24 24 24 24 24 24 24 24 24 24 24 24 24 24 21 21 23 24 22 24 19 Class Distribution -------------------- 46% | Scavenger-Mutant 43% | Hauler-Mutant 3% | Scavenger-Golem Dominant Class ---------------- Mutant | -10/Materials Hauler-Mutant | -10/Mines Hauler-Mutant | -10/Exiles Hauler-Mutant | -9/Mines Hauler-Mutant | -8/Materials Hauler-Mutant | -7/Factory Hauler-Mutant | -7/Lower Caves Hauler-Mutant | -7/Lower Caves Hauler-Mutant | -7/Zion Hauler-Mutant | -7/Deep Caves Hauler-Mutant | -6/Proximity Caves Scavenger-Mutant | -6/Factory Scavenger-Mutant | -6/Lower Caves Scavenger-Mutant | -6/Lower Caves Scavenger-Mutant | -6/Data Miner Scavenger-Mutant | -5/Proximity Caves Scavenger-Mutant | -5/Factory Scavenger-Mutant | -5/Extension Scavenger-Mutant | -5/Cetus Scavenger-Mutant | -5/Archives Scavenger-Mutant | -5/Hub_04(d) Scavenger-Mutant | -4/Factory Scavenger-Mutant | -4/Upper Caves Scavenger-Mutant | -4/Upper Caves Scavenger-Mutant | -4/Warlord Scavenger-Mutant | -3/Proximity Caves Scavenger-Golem | -3/Research Hauler-Golem | -3/Quarantine Resources | -11 -10 -10 -10 -9 -8 -7 -7 -7 -7 -7 -6 -6 -6 -6 -6 -5 -5 -5 -5 -5 -5 -4 -4 -4 -4 -3 -3 -3 ----------- Run | Scr Mat Min Exi Min Mat Fac Low Low Zio Dee Pro Fac Low Low Dat Pro Fac Ext Cet Arc Hub Fac Upp Upp War Pro Res Qua Matter Collected 9550 | 167 448 127 . 103 996 699 119 57 . 660 . 689 167 118 . 396 942 246 363 131 501 1272 75 126 112 90 239 707 Remotely . | . . . . . . . . . . . . . . . . . . . . . . . . . . . . . Salvage Created 22401 | 121 646 45 . 69 1626 1468 78 . . 2273 146 2845 668 280 . 715 2757 1198 898 295 439 3642 75 168 217 120 375 1237 Parts 890 | 14 36 9 . 5 86 71 5 . . 45 9 121 19 12 . 22 135 39 33 19 9 102 2 6 4 5 19 63 Haulers Intercepted 20 | . 2 . . . 3 4 . . . . . 2 . . . . 3 1 . . . 4 . . . . 1 . Recyclers Shooed 15 | . 2 1 . . . 1 . . . . . 1 . . . . 5 1 . . 1 3 . . . . . . Parts Field Recycled . | . . . . . . . . . . . . . . . . . . . . . . . . . . . . . Retrieved Matter . | . . . . . . . . . . . . . . . . . . . . . . . . . . . . . Parts Self-Destructed 61 | . . . . . . . 6 10 . . 5 . 3 7 . 10 . . . . . . 1 6 9 4 . . Prevented 62 | . . . . . . . 2 . . . 4 . 7 4 . 11 . . . . . . 2 2 27 3 . . Kills | -11 -10 -10 -10 -9 -8 -7 -7 -7 -7 -7 -6 -6 -6 -6 -6 -5 -5 -5 -5 -5 -5 -4 -4 -4 -4 -3 -3 -3 ------- Run | Scr Mat Min Exi Min Mat Fac Low Low Zio Dee Pro Fac Low Low Dat Pro Fac Ext Cet Arc Hub Fac Upp Upp War Pro Res Qua Combat Hostiles Destroyed 362 | . 13 4 . 2 33 17 3 . . 45 4 45 10 7 . 15 38 11 20 1 7 49 1 3 3 6 5 20 Melee 4 | . . . . . . . . . . 2 . . . . . . . . . . . 2 . . . . . . Guns 53 | . 13 . . 1 24 6 2 . . 1 . . . . . . 6 . . . . . . . . . . . Cannons 142 | . . . . . 4 7 . . . 5 4 27 4 6 . 7 24 4 8 1 7 16 1 2 . 1 5 9 AOE 110 | . . 4 . 1 5 3 1 . . 30 . 10 2 . . 5 7 5 9 . . 14 . 1 . 5 . 8 Classes Destroyed 23 | 2 5 . . . 3 2 . . . 4 1 3 . . . . . 1 . . . 1 . . . . . 1 Worker 13 | . 1 . . . . 3 . . . . . 1 . . . . 3 1 . . 2 2 . . . . . . Builder 8 | . . . . . . . . . . . . 1 . . . . . 2 . . . 4 . . . . 1 . Tunneler 6 | 3 . 1 . . . . . . . . . 1 . . . . . 1 . . . . . . . . . . Hauler 20 | . 2 . . . 3 4 . . . . . 2 . . . . 3 1 . . . 4 . . . . 1 . Recycler 13 | 1 1 . . . 1 3 . . . . . . . . . . 2 2 . . 1 2 . . . . . . Mechanic 1 | . . . . . . . . . . . . . . . . . . . . . . 1 . . . . . . Operator 10 | . . . . . . 1 . . . . . . . . . . 1 . . 6 1 1 . . . . . . Watcher 16 | . 1 . . . 2 4 . . . . . 3 . . . . 4 . 2 . . . . . . . . . Swarmer 80 | . 6 4 . . 10 3 3 . . . 3 5 . 4 . 5 5 2 11 . . 9 . . . 5 2 3 Saboteur 1 | . . . . . . . . . . . . 1 . . . . . . . . . . . . . . . . Grunt 127 | . 7 . . 2 11 8 . . . . . 27 6 3 . 9 13 5 4 . 3 19 . 3 1 1 1 4 Brawler 6 | . . . . . 2 . . . . . . . 1 . . 1 1 . . . . . . . 1 . . . Duelist 5 | . . . . . 1 . . . . . . . . . . . 2 . . . . 1 . . 1 . . . Protector 3 | . . . . . . . . . . . . 1 . . . . 1 1 . . . . . . . . . . Sentry 37 | . . . . . 9 3 . . . . . 4 . . . . 3 2 . 1 2 8 1 . . . 2 2 Demolisher 1 | . . . . . . . . . . . . . . . . . . 1 . . . . . . . . . . Hunter 20 | . . . . . . . . . . . 1 2 . . . . 5 . . . 2 8 . . . . . 2 Programmer 27 | . . . . . . 3 . . . . . 4 . . . . 8 . . . . 4 . . . . . 8 Cetus Guard 5 | . . . . . . . . . . . . . . . . . . . 5 . . . . . . . . . Enhanced Grunt 1 | . . . . . . . . . . . . . . . . 1 . . . . . . . . . . . . Alpha 7 1 | . . . . . . . . . . . . . . . . . . . . . . . . . . . . 1 Z-Light 6 | . . . . . . . . . . 6 . . . . . . . . . . . . . . . . . . Assembler 2 | . . . . . . . . . . 2 . . . . . . . . . . . . . . . . . . Assembled 30 | . . . . . . . . . . 30 . . . . . . . . . . . . . . . . . . Golem 8 | . . . . . . . . . . 8 . . . . . . . . . . . . . . . . . . Thug 2 | . . . . . . . . . . . . 1 1 . . . . . . . . . . . . . . . Savage 2 | . . . . . . . . . . . . . 2 . . . . . . . . . . . . . . . Butcher 1 | . . . . . . . . . . . . . . . . . . 1 . . . . . . . . . . Best Kill Streak 33 | 3 6 3 . 2 6 6 3 . . 33 3 6 4 4 . 5 10 12 9 4 6 18 1 3 3 5 3 5 Combat Bots Only 31 | . 6 3 . 2 4 3 3 . . 31 3 6 4 4 . 5 8 7 9 1 4 14 1 3 3 5 3 5 Max Kills in Single Turn 13 | 1 1 3 . 1 2 4 1 . . 13 1 4 2 1 . 2 3 3 4 1 2 5 1 1 2 3 1 2 Gunslinging . | . . . . . . . . . . . . . . . . . . . . . . . . . . . . . Exploded 13 | . . 3 . 1 2 1 1 . . 13 . 4 2 . . 2 3 2 4 . . 3 . 1 . 3 . 2 Melee 1 | . . . . . . . . . . 1 . . . . . . . . . . . 1 . . . . . . Uniques/NPCs Destroyed 1 | . . . . . . . . . . 1 . . . . . . . . . . . . . . . . . . Z-Imprinter (-7/Deep Caves) Combat | -11 -10 -10 -10 -9 -8 -7 -7 -7 -7 -7 -6 -6 -6 -6 -6 -5 -5 -5 -5 -5 -5 -4 -4 -4 -4 -3 -3 -3 -------- Run | Scr Mat Min Exi Min Mat Fac Low Low Zio Dee Pro Fac Low Low Dat Pro Fac Ext Cet Arc Hub Fac Upp Upp War Pro Res Qua Damage Taken 30375 | . 822 80 . 26 1927 1122 236 . . 1403 208 2295 376 303 . 700 3360 1092 1555 281 1171 4799 61 378 577 462 720 6421 Core 3485 | . 167 8 . . 141 143 . . . 114 37 224 59 45 . 41 278 111 36 22 111 544 . 18 42 35 24 1285 Absorbed by Shields 546 | . . . . . . . . . . . . 44 . . . . 16 93 46 . . 21 . . . . 9 317 Redirected to Core 736 | . . . . . . . . . . . . . . . . . . . . . . . . . . . . 736 Core Remaining (%) 58 | 100 . . . 30 74 . . . . . 58 . . . . 56 . . . . 44 . . . . 44 . . Volleys Fired 1127 | 8 77 11 . 3 144 84 6 3 . 57 6 119 23 20 . 32 120 41 32 16 41 129 2 9 7 8 23 106 Largest 2 | 2 2 2 . 2 2 2 2 2 . 2 2 2 2 2 . 2 2 2 2 2 2 2 2 2 1 2 2 2 Hottest 180 | 40 88 88 . 40 105 100 85 135 . 138 138 180 170 170 . 138 165 179 179 179 180 162 145 145 57 97 57 91 Shots Fired 1883 | 14 151 17 . 5 276 158 12 4 . 103 12 217 38 32 . 56 209 67 47 20 43 178 4 17 7 9 40 147 Gun 547 | 14 144 10 . 4 235 87 6 1 . 10 . . . . . . 29 . . 6 1 . . . . . . . Cannon 1208 | . 7 2 . . 32 66 5 3 . 73 12 205 30 32 . 50 176 61 36 14 42 160 4 17 1 6 40 134 Launcher 124 | . . 5 . 1 5 5 1 . . 20 . 12 8 . . 6 4 6 11 . . 18 . . 6 3 . 13 Special 4 | . . . . . 4 . . . . . . . . . . . . . . . . . . . . . . . Kinetic 638 | 12 91 10 . 4 202 69 6 . . 10 . . . 7 . 26 43 . . . 33 52 2 9 1 5 6 50 Thermal 596 | . 25 2 . . 47 51 5 4 . 10 . 142 30 18 . 1 83 32 7 12 9 . . . . . 34 84 Explosive 24 | . . 5 . 1 3 . . . . . . 1 . . . 2 1 . 2 . . 6 . . . 3 . . Electromagnetic 625 | 2 35 . . . 24 38 1 . . 83 12 74 8 7 . 27 82 35 38 8 1 120 2 8 6 1 . 13 Robot Hit Streak 36 | 4 12 10 . 4 13 14 14 1 . 36 19 31 10 5 . 8 23 14 6 8 13 24 6 8 5 6 6 15 Robot Miss Streak 5 | 1 5 3 . . 4 4 4 3 . 4 . 5 2 2 . 3 4 2 4 1 5 3 . 2 1 2 3 4 Penetration Max . | . . . . . . . . . . . . . . . . . . . . . . . . . . . . . Secondary Targets 6 | . 3 . . . 2 1 . . . . . . . . . . . . . . . . . . . . . . Max Gunslinging Chain 1 | . 1 . . . 1 1 . . . . . . . . . . . . . . . . . . . . . . Shots Hit Robots 1221 | 8 90 8 . 3 178 105 6 1 . 80 9 134 18 14 . 34 148 44 24 26 31 137 3 13 5 1 22 79 Core Hits 819 | 4 30 7 . 4 77 48 3 . . 102 5 83 16 9 . 24 86 36 36 12 22 104 1 5 13 12 12 68 Critical Hits 45 | . 2 . . . 1 1 . . . 1 . . . . . 5 12 . . . 2 5 1 2 . . 4 9 Critical Kills 16 | . 1 . . . 1 . . . . . . . . . . 2 4 . . . . 4 1 . . . 2 1 Critical Parts Destroyed 27 | . 1 . . . . 1 . . . 1 . . . . . 3 8 . . . 1 1 . 2 . . 2 7 Melee Attacks 71 | . . . . . 1 5 . . . 16 . 12 . . . . . . . 10 . 15 11 . . . 1 . Impact . | . . . . . . . . . . . . . . . . . . . . . . . . . . . . . Slashing 71 | . . . . . 1 5 . . . 16 . 12 . . . . . . . 10 . 15 11 . . . 1 . Piercing . | . . . . . . . . . . . . . . . . . . . . . . . . . . . . . Sneak Attacks 8 | . . . . . . . . . . . . . . . . . . . . 7 . . . . . . 1 . Combat Hostiles . | . . . . . . . . . . . . . . . . . . . . . . . . . . . . . Follow-up Attacks . | . . . . . . . . . . . . . . . . . . . . . . . . . . . . . Damage Inflicted 52435 | 131 1131 258 . 99 2992 2526 194 43 . 4502 241 5940 1192 413 . 1645 6450 2764 2315 1623 1756 8940 98 617 614 486 1004 4461 Guns 5166 | 90 1011 62 . 27 2167 976 75 21 . 66 . . . . . . 531 . . 112 28 . . . . . . . Cannons 28611 | . 84 42 . . 392 1135 45 22 . 1496 241 4017 446 413 . 927 4797 1375 825 342 1572 5795 98 401 . 38 898 3210 Explosions 16622 | 41 36 154 . 72 433 415 74 . . 2512 . 1923 746 . . 718 1101 1389 1490 . 156 2833 . 216 614 448 . 1251 Melee 1984 | . . . . . . . . . . 428 . . . . . . . . . 1169 . 281 . . . . 106 . Ramming 52 | . . . . . . . . . . . . . . . . . 21 . . . . 31 . . . . . . Kinetic 10179 | 65 665 62 . 27 1860 726 75 . . 66 . . . 85 . 461 1054 . . . 1339 2046 35 241 . . 159 1213 Thermal 14448 | 41 241 42 . . 509 1044 45 43 . 136 . 2837 488 133 . . 2848 1072 513 216 226 760 . 216 . . 739 2299 Explosive 3407 | . . 154 . 72 255 . . . . . . 219 . . . 280 384 . 365 . . 1230 . . . 448 . . Electromagnetic 22365 | 25 225 . . . 368 756 74 . . 3872 241 2884 704 195 . 904 2143 1692 1437 238 191 4592 63 160 614 38 . 949 Impact . | . . . . . . . . . . . . . . . . . . . . . . . . . . . . . Slashing 1984 | . . . . . . . . . . 428 . . . . . . . . . 1169 . 281 . . . . 106 . Piercing . | . . . . . . . . . . . . . . . . . . . . . . . . . . . . . Highest Corruption 13 | . . . . . . 4 5 5 5 1 1 4 13 13 13 13 7 7 8 8 3 3 3 3 6 1 . 11 Average Corruption 4 | . . . . . . 3 4 5 5 1 1 2 5 13 13 13 4 7 7 6 1 1 3 3 3 1 . 5 Corruption Purged 8 | . . . . . . . . . . . . . . . . . . . . 8 . . . . . . . . Effects 382 | . . . . . . 26 11 11 1 10 . 47 20 22 7 34 34 52 22 17 1 10 3 11 . 3 . 40 Message Errors 78 | . . . . . . 4 3 2 . 5 . 10 6 2 3 7 5 8 4 7 . 2 2 1 . 2 . 5 Matter Fused 73 | . . . . . . 9 2 3 . . . 8 8 4 1 4 5 10 7 4 . . . 4 . . . 4 Heat Flow Errors 46 | . . . . . . 3 2 3 . . . 3 1 4 . 3 6 8 2 1 . 1 . 2 . . . 7 Energy Discharges 41 | . . . . . . 2 1 2 . 3 . 4 1 2 . 6 5 8 1 1 1 . . 1 . . . 3 Parts Rejected 5 | . . . . . . . . . . . . 3 . . . 1 . 1 . . . . . . . . . . Data Loss (minor) 43 | . . . . . . . 1 1 . 1 . 7 1 2 . 3 5 6 1 4 . 3 1 3 . 1 . 3 Data Loss (major) 8 | . . . . . . . . . 1 . . . . . 1 1 . 3 . . . . . . . . . 2 Misfires 8 | . . . . . . . 1 . . . . . . . . 2 1 3 1 . . . . . . . . . Misdirections 10 | . . . . . . . . . . . . . . 4 2 4 . . . . . . . . . . . . Targeting Errors 52 | . . . . . . 7 1 . . . . 7 3 3 . 3 6 4 4 . . 3 . . . . . 11 Weapon Failures 18 | . . . . . . 1 . . . 1 . 5 . 1 . . 1 1 2 . . 1 . . . . . 5 Overload Shots . | . . . . . . . . . . . . . . . . . . . . . . . . . . . . . Overflow Damage 1933 | . 44 . . . 47 77 . . . 159 1 105 19 10 . 19 141 45 36 425 91 458 . 10 . 16 37 193 Projectiles 1038 | . 13 . . . 10 49 . . . 106 1 90 . 10 . 11 103 18 29 1 48 314 . 10 . . 37 188 Explosions 471 | . 31 . . . 37 28 . . . 53 . 15 19 . . 8 38 27 7 . 43 144 . . . 16 . 5 Melee 424 | . . . . . . . . . . . . . . . . . . . . 424 . . . . . . . . Knockbacks 49 | . . . . . . . . . . . . . . 2 . 2 13 . . . 11 7 . 3 . . . 11 Impact . | . . . . . . . . . . . . . . . . . . . . . . . . . . . . . Kinetic 45 | . . . . . . . . . . . . . . 2 . 2 13 . . . 9 7 . 3 . . . 9 Secondary 4 | . . . . . . . . . . . . . . . . . . . . . 2 . . . . . . 2 Self-Inflicted Damage 974 | . . . . . . 74 18 . . 39 . 56 114 . . 41 148 . 92 . 95 129 . 28 29 79 . 32 Shots 41 | . . . . . . 3 1 . . 2 . 4 4 . . 1 5 . 3 . 1 3 . 1 2 2 . 9 Rammed 2 | . . . . . . . . . . . . . . . . . 1 . . . . 1 . . . . . . Targets Rammed 4 | . . . . . . . . . . . . . . . . . 2 . . . . 2 . . . . . . Kicked 2 | . . . . . . . . . . . . . . . . . 1 . . . . 1 . . . . . . Crushed . | . . . . . . . . . . . . . . . . . . . . . . . . . . . . . Highest Temperature 465 | . 204 48 . . 465 225 225 146 . 285 . 331 216 172 . 238 267 333 274 190 69 414 . 149 . . 5 252 Average Temperature 76 | . 49 27 . . 132 26 119 72 . 94 . 67 78 78 . 63 62 91 153 77 16 84 . 67 . . 3 64 Received Heat Transfer 5217 | . 276 . . 15 630 288 . . . 349 . 739 81 87 . 261 536 204 223 18 198 546 . 129 174 9 25 429 Effects 9 | . . . . . 4 . . . . . . 1 . . . . . 1 2 . . 1 . . . . . . Shutdowns 3 | . . . . . 1 . . . . . . 1 . . . . . . . . . 1 . . . . . . Energy Bleed 1 | . . . . . 1 . . . . . . . . . . . . . . . . . . . . . . . Interference 2 | . . . . . . . . . . . . . . . . . . . 2 . . . . . . . . . Matter Decay 3 | . . . . . 2 . . . . . . . . . . . . 1 . . . . . . . . . . Siege Activations . | . . . . . . . . . . . . . . . . . . . . . . . . . . . . . Robots Corrupted 59 | . . . . . . 1 . . . 7 . 8 4 1 . 3 2 3 3 . . 21 . . 3 . . 3 Combat Hostiles 53 | . . . . . . 1 . . . 7 . 8 4 1 . 3 1 2 3 . . 17 . . 3 . . 3 Parts Fried 145 | . . . . . . 2 . . . 20 4 21 3 1 . 6 12 19 5 . . 39 . . 2 1 . 10 Impact Corruptions 1 | . . . . . . . . . . . . . . . . . . . . . . . . . . . . 1 Robots Melted . | . . . . . . . . . . . . . . . . . . . . . . . . . . . . . Combat Hostiles . | . . . . . . . . . . . . . . . . . . . . . . . . . . . . . Parts Melted 18 | . . . . . 2 2 . . . 1 . 6 1 1 . . 2 1 . . . . . . . . 1 1 Heat Transferred 15000 | . 473 74 . . 901 1458 74 74 . 194 . 3720 746 250 . . 2475 936 448 259 337 700 . 100 . . 406 1375 Parts Sabotaged . | . . . . . . . . . . . . . . . . . . . . . . . . . . . . . Parts Stolen 2 | . . . . . . . . 2 . . . . . . . . . . . . . . . . . . . . Parts Stripped . | . . . . . . . . . . . . . . . . . . . . . . . . . . . . . Power Chain Reactions 27 | 1 1 . . . 1 1 . . . . . 2 1 . . . 4 6 2 . . 5 . 1 . . . 2 Missiles Intercepted . | . . . . . . . . . . . . . . . . . . . . . . . . . . . . . Alert | -11 -10 -10 -10 -9 -8 -7 -7 -7 -7 -7 -6 -6 -6 -6 -6 -5 -5 -5 -5 -5 -5 -4 -4 -4 -4 -3 -3 -3 ------- Run | Scr Mat Min Exi Min Mat Fac Low Low Zio Dee Pro Fac Low Low Dat Pro Fac Ext Cet Arc Hub Fac Upp Upp War Pro Res Qua Peak Influence 1478 | 20 261 126 . 50 589 527 . . . . . 939 . . . . 908 925 1235 719 967 1478 . . . . 157 328 Average Influence 376 | 8 135 64 . 49 403 254 . . . . . 325 . . . . 438 611 772 614 469 780 . . . . 26 103 Maximum Alert Level 4 | . 1 . . . 2 2 . . . . . 3 . . . . 3 3 4 3 3 4 . . . . . 1 Low Security (%) 35 | 100 78 100 . 100 7 50 . . . . . 44 . . . . 7 . . . 10 . . . . . 100 83 Level 1 17 | . 21 . . . 29 11 . . . . . 23 . . . . 37 9 . . 21 2 . . . . . 16 Level 2 33 | . . . . . 62 37 . . . . . 17 . . . . 43 60 48 61 60 44 . . . . . . Level 3 12 | . . . . . . . . . . . . 15 . . . . 11 30 42 38 7 41 . . . . . . Level 4 1 | . . . . . . . . . . . . . . . . . . . 8 . . 11 . . . . . . Level 5 . | . . . . . . . . . . . . . . . . . . . . . . . . . . . . . High Security . | . . . . . . . . . . . . . . . . . . . . . . . . . . . . . Max Security . | . . . . . . . . . . . . . . . . . . . . . . . . . . . . . Squads Dispatched 67 | . 3 . . . 8 10 . . . . . 14 . . . . 7 3 . . 3 9 . . . . 4 6 Investigation 16 | . 3 . . . 1 4 . . . . . 3 . . . . 1 . . . 1 2 . . . . . 1 Extermination 13 | . . . . . . 2 . . . . . 2 . . . . 4 . . . . 2 . . . . . 3 Reinforcement 22 | . . . . . 4 3 . . . . . 4 . . . . . . . . 1 4 . . . . 4 2 Assault 9 | . . . . . . 1 . . . . . 1 . . . . 2 3 . . 1 1 . . . . . . Garrison 7 | . . . . . 3 . . . . . . 4 . . . . . . . . . . . . . . . . Intercept . | . . . . . . . . . . . . . . . . . . . . . . . . . . . . . Construction Impeded 5 | . . . . . 2 . . . . . . 2 . . . . . . . . . 1 . . . . . . Haulers Reinforced 7 | . . . . . . 2 . . . . . 2 . . . . . . . . . 2 . . . . 1 . Stealth | -11 -10 -10 -10 -9 -8 -7 -7 -7 -7 -7 -6 -6 -6 -6 -6 -5 -5 -5 -5 -5 -5 -4 -4 -4 -4 -3 -3 -3 --------- Run | Scr Mat Min Exi Min Mat Fac Low Low Zio Dee Pro Fac Low Low Dat Pro Fac Ext Cet Arc Hub Fac Upp Upp War Pro Res Qua Distress Signals 15 | . . . . . 5 . . . . . . 1 . . . . . 1 2 . . . . . . . 5 1 Communications Jammed 79 | . . . . . . . . . . . . 1 . . . . 22 44 . . 4 8 . . . . . . Distress Signals 79 | . . . . . . . . . . . . 1 . . . . 22 44 . . 4 8 . . . . . . Times Spotted 598 | . 36 6 . 2 55 27 4 2 . 61 5 60 11 7 . 19 58 42 28 13 27 63 1 3 16 7 14 31 Peak Tracking Total 37 | . 6 3 . 2 6 3 3 2 . 37 3 7 4 4 . 5 8 10 7 2 6 9 1 3 10 5 5 6 Tactical Retreats 48 | . 5 . . . 3 1 . . . 3 1 6 . . . 3 8 3 . . 1 9 . . . 1 1 3 Traps | -11 -10 -10 -10 -9 -8 -7 -7 -7 -7 -7 -6 -6 -6 -6 -6 -5 -5 -5 -5 -5 -5 -4 -4 -4 -4 -3 -3 -3 ------- Run | Scr Mat Min Exi Min Mat Fac Low Low Zio Dee Pro Fac Low Low Dat Pro Fac Ext Cet Arc Hub Fac Upp Upp War Pro Res Qua Traps Triggered 23 | . . . . . . 3 . . . . . 3 . . . . 1 3 . . 3 4 . . . . . 6 Indirectly 2 | . . . . . . 1 . . . . . 1 . . . . . . . . . . . . . . . . Trap Hack Attempts . | . . . . . . . . . . . . . . . . . . . . . . . . . . . . . Triggered . | . . . . . . . . . . . . . . . . . . . . . . . . . . . . . Disarmed . | . . . . . . . . . . . . . . . . . . . . . . . . . . . . . Reprogrammed 12 | . . . . . . 12 . . . . . . . . . . . . . . . . . . . . . . Reused 2 | . . . . . . 2 . . . . . . . . . . . . . . . . . . . . . . Traps Extracted . | . . . . . . . . . . . . . . . . . . . . . . . . . . . . . Installed . | . . . . . . . . . . . . . . . . . . . . . . . . . . . . . Triggered 11 | . . . . . . 2 . . . . . . 1 . . . . . . . . 1 . . 4 3 . . Machines | -11 -10 -10 -10 -9 -8 -7 -7 -7 -7 -7 -6 -6 -6 -6 -6 -5 -5 -5 -5 -5 -5 -4 -4 -4 -4 -3 -3 -3 ---------- Run | Scr Mat Min Exi Min Mat Fac Low Low Zio Dee Pro Fac Low Low Dat Pro Fac Ext Cet Arc Hub Fac Upp Upp War Pro Res Qua Machines Disabled 57 | . . . . . 5 8 . . . 3 . 10 . . . . 5 4 1 1 9 1 . . . . 3 7 Max in Single Turn 7 | . . . . . 1 3 . . . 1 . 5 . . . . 1 1 . 1 7 1 . . . . 2 1 Garrison Access 5 | . . . . . . 1 . . . . . 1 . . . . . . . . 1 2 . . . . . . Network Hub 1 | . . . . . . . . . . . . . . . . . . . . . 1 . . . . . . . Machines Sabotaged . | . . . . . . . . . . . . . . . . . . . . . . . . . . . . . Garrisons Compromised . | . . . . . . . . . . . . . . . . . . . . . . . . . . . . . Overloaded Fab Kills . | . . . . . . . . . . . . . . . . . . . . . . . . . . . . . Fab Network Shutdowns 1 | . . . . . . . . . . . . . . . . . 1 . . . . . . . . . . . Hacking | -11 -10 -10 -10 -9 -8 -7 -7 -7 -7 -7 -6 -6 -6 -6 -6 -5 -5 -5 -5 -5 -5 -4 -4 -4 -4 -3 -3 -3 --------- Run | Scr Mat Min Exi Min Mat Fac Low Low Zio Dee Pro Fac Low Low Dat Pro Fac Ext Cet Arc Hub Fac Upp Upp War Pro Res Qua Machines Accessed 109 | . 8 . 1 . 6 10 1 . 1 . . 17 . . 4 1 11 13 4 . 5 12 . . 1 . 4 10 Terminals 69 | . 6 . . . 6 7 . . . . . 9 . . . 1 7 13 4 . 4 3 . . . . 1 8 Fabricators 7 | . . . . . . 1 . . . . . 3 . . . . 1 . . . . 2 . . . . . . Repair Stations 9 | . . . . . . . . . . . . 2 . . . . 2 . . . . 2 . . . . 3 . Recycling Units 5 | . 2 . . . . 2 . . . . . . . . . . . . . . . 1 . . . . . . Scanalyzers 6 | . . . . . . . . . . . . 1 . . . . 1 . . . . 2 . . . . . 2 Garrison Access 5 | . . . . . . . . . . . . 2 . . . . . . . . 1 2 . . . . . . Total Hacks 358 | . 23 . 4 . 22 25 1 . 5 . . 56 . . 26 3 42 39 11 . 13 44 . . 1 . 12 31 Successful 206 | . 14 . 4 . 15 7 1 . 5 . . 27 . . 26 2 27 17 7 . 6 29 . . 1 . 4 14 Failed 151 | . 8 . . . 7 18 . . . . . 29 . . . 1 15 22 4 . 7 15 . . . . 8 17 Catastrophic 37 | . . . . . 1 5 . . . . . 14 . . . . 4 3 1 . 2 2 . . . . 3 2 Database Lockouts 1 | . 1 . . . . . . . . . . . . . . . . . . . . . . . . . . . Manual 160 | . 8 . . . 12 9 . . 7 . . 18 . . . 1 19 33 12 . 2 12 . . 1 . 5 21 Terminals 236 | . 18 . . . 22 19 . . . . . 34 . . . 3 31 39 11 . 11 17 . . . . 5 26 Fabricators 30 | . . . . . . 1 . . . . . 10 . . . . 6 . . . . 13 . . . . . . Repair Stations 19 | . . . . . . . . . . . . 4 . . . . 3 . . . . 5 . . . . 7 . Recycling Units 11 | . 5 . . . . 5 . . . . . . . . . . . . . . . 1 . . . . . . Scanalyzers 15 | . . . . . . . . . . . . 3 . . . . 2 . . . . 5 . . . . . 5 Garrison Access 10 | . . . . . . . . . . . . 5 . . . . . . . . 2 3 . . . . . . Terminal Hacks 115 | . 8 . 4 . 11 4 1 . 5 . . 12 . . 26 2 13 8 2 . 6 6 . . 1 . 1 5 Record 17 | . . . 4 . . . . . . . . . . . 11 2 . . . . . . . . . . . . Part Schematic 15 | . 1 . . . . . . . 5 . . 2 . . 6 . . . 1 . . . . . . . . . Robot Schematic 6 | . . . . . . . . . . . . . . . 6 . . . . . . . . . . . . . Robot Analysis 3 | . 1 . . . 2 . . . . . . . . . . . . . . . . . . . . . . . Prototype ID Bank 12 | . 1 . . . . . . . . . . 4 . . 3 . 1 2 . . 1 . . . . . . . Open Door 5 | . . . . . . . 1 . . . . . . . . . . . 1 . . . . . 1 . . 2 Level Access Points 2 | . . . . . . . . . . . . . . . . . . . . . 1 . . . . . . 1 Branch Access Points 5 | . . . . . 1 1 . . . . . 1 . . . . . . . . . 1 . . . . 1 . Terminal Index 3 | . . . . . 1 1 . . . . . . . . . . . . . . . 1 . . . . . . Fabricator Index 1 | . . . . . . . . . . . . 1 . . . . . . . . . . . . . . . . Alert Level 3 | . . . . . . . . . . . . . . . . . 1 2 . . . . . . . . . . Unreport Threat 12 | . . . . . 1 . . . . . . 3 . . . . 2 2 . . 2 2 . . . . . . Locate Traps 6 | . 1 . . . . . . . . . . . . . . . 3 1 . . . 1 . . . . . . Reprogram Traps 2 | . . . . . . 2 . . . . . . . . . . . . . . . . . . . . . . Dispatch Records 1 | . 1 . . . . . . . . . . . . . . . . . . . . . . . . . . . Transport Status 1 | . . . . . . . . . . . . . . . . . 1 . . . . . . . . . . . Recall Investigation 1 | . 1 . . . . . . . . . . . . . . . . . . . . . . . . . . . Recall Extermination 2 | . . . . . . . . . . . . . . . . . . . . . . 1 . . . . . 1 Recall Reinforcements 1 | . . . . . 1 . . . . . . . . . . . . . . . . . . . . . . . Recall Assault 2 | . . . . . . . . . . . . . . . . . 1 . . . 1 . . . . . . . Hauler Manifests 3 | . 1 . . . 1 . . . . . . 1 . . . . . . . . . . . . . . . . Registered Components 1 | . . . . . . . . . . . . . . . . . 1 . . . . . . . . . . . Registered Prototypes 1 | . . . . . . . . . . . . . . . . . 1 . . . . . . . . . . . Zone Layout 10 | . 1 . . . 4 . . . . . . . . . . . 2 1 . . 1 . . . . . . 1 Fabricator Hacks 15 | . . . . . . . . . . . . 4 . . . . 3 . . . . 8 . . . . . . Load Schematic 6 | . . . . . . . . . . . . 1 . . . . 1 . . . . 4 . . . . . . Build 9 | . . . . . . . . . . . . 3 . . . . 2 . . . . 4 . . . . . . Repair Station Hacks 11 | . . . . . . . . . . . . 2 . . . . 2 . . . . 4 . . . . 3 . Scan Component 6 | . . . . . . . . . . . . 1 . . . . 1 . . . . 2 . . . . 2 . Repair 5 | . . . . . . . . . . . . 1 . . . . 1 . . . . 2 . . . . 1 . Recycling Unit Hacks 3 | . 2 . . . . . . . . . . . . . . . . . . . . 1 . . . . . . Retrieve Components 3 | . 2 . . . . . . . . . . . . . . . . . . . . 1 . . . . . . Scanalyzer 9 | . . . . . . . . . . . . 2 . . . . 2 . . . . 4 . . . . . 1 Insert Component 6 | . . . . . . . . . . . . 2 . . . . 1 . . . . 2 . . . . . 1 Analyze 3 | . . . . . . . . . . . . . . . . . 1 . . . . 2 . . . . . . Garrison Access Hacks 2 | . . . . . . . . . . . . 1 . . . . . . . . . 1 . . . . . . Seal Access 2 | . . . . . . . . . . . . 1 . . . . . . . . . 1 . . . . . . Unauthorized Hacks 51 | . 4 . . . 4 3 . . . . . 6 . . . . 7 9 5 . . 5 . . . . . 8 Terminals 42 | . 2 . . . 4 1 . . . . . 4 . . . . 6 9 5 . . 3 . . . . . 8 Track 17 | . . . . . 3 . . . . . . 2 . . . . 2 3 2 . . 1 . . . . . 4 Assimilate 1 | . . . . . . . . . . . . . . . . . 1 . . . . . . . . . . . Botnet 23 | . 2 . . . 1 1 . . . . . 2 . . . . 3 6 3 . . 1 . . . . . 4 Disrupt 1 | . . . . . . . . . . . . . . . . . . . . . . 1 . . . . . . Fabricators 4 | . . . . . . . . . . . . 2 . . . . 1 . . . . 1 . . . . . . Prioritize 3 | . . . . . . . . . . . . 1 . . . . 1 . . . . 1 . . . . . . Haulers 1 | . . . . . . . . . . . . 1 . . . . . . . . . . . . . . . . Repair Stations . | . . . . . . . . . . . . . . . . . . . . . . . . . . . . . Recycling Units 4 | . 2 . . . . 2 . . . . . . . . . . . . . . . . . . . . . . Reject 1 | . 1 . . . . . . . . . . . . . . . . . . . . . . . . . . . Tunnel 3 | . 1 . . . . 2 . . . . . . . . . . . . . . . . . . . . . . Scanalyzers . | . . . . . . . . . . . . . . . . . . . . . . . . . . . . . Garrison Access 1 | . . . . . . . . . . . . . . . . . . . . . . 1 . . . . . . Jam 1 | . . . . . . . . . . . . . . . . . . . . . . 1 . . . . . . Data Cores Recovered 3 | . . . . . . 1 . . . . . . . . . . 1 . . . 1 . . . . . . . Used 1 | . . . . . . . . . . . . . . . . . 1 . . . . . . . . . . . Hacking Detections 90 | . 6 . . . 6 10 . . . . . 15 . . . 1 10 13 4 . 5 8 . . . . 4 8 Full Trace Events 7 | . . . . . 1 1 . . . . . 3 . . . . . . . . 1 . . . . . . 1 Feedback Events . | . . . . . . . . . . . . . . . . . . . . . . . . . . . . . Feedback Blocked . | . . . . . . . . . . . . . . . . . . . . . . . . . . . . . Robot Schematics Acquired 6 | . . . . . . . . . . . . . . . 6 . . . . . . . . . . . . . Robots Built . | . . . . . . . . . . . . . . . . . . . . . . . . . . . . . Matter . | . . . . . . . . . . . . . . . . . . . . . . . . . . . . . Time . | . . . . . . . . . . . . . . . . . . . . . . . . . . . . . Total Robot Build Rating . | . . . . . . . . . . . . . . . . . . . . . . . . . . . . . Part Schematics Acquired 18 | . 1 . . . . . . . 5 . . 2 . . 6 . 1 . 1 . . 2 . . . . . . Parts Built 9 | . . . . . . . . . . . . 3 . . . . 2 . . . . 4 . . . . . . Matter 1467 | . . . . . . . . . . . . 306 . . . . 570 . . . . 591 . . . . . . Time 422 | . . . . . . . . . . . . 127 . . . . 152 . . . . 143 . . . . . . Total Part Build Rating 21 | . . . . . . . . . . . . 3 . . . . 10 . . . . 8 . . . . . . Parts Repaired 5 | . . . . . . . . . . . . 1 . . . . 1 . . . . 2 . . . . 1 . Time 200 | . . . . . . . . . . . . 22 . . . . 30 . . . . 110 . . . . 38 . Parts Recycled . | . . . . . . . . . . . . . . . . . . . . . . . . . . . . . Recycled Matter . | . . . . . . . . . . . . . . . . . . . . . . . . . . . . . Retrieved Matter . | . . . . . . . . . . . . . . . . . . . . . . . . . . . . . Retrieved Components . | . . . . . . . . . . . . . . . . . . . . . . . . . . . . . Parts Scanalyzed 4 | . . . . . . . . . . . . 1 . . . . 1 . . . . 2 . . . . . . Part Schematics Acquired 3 | . . . . . . . . . . . . . . . . . 1 . . . . 2 . . . . . . Parts Damaged 1 | . . . . . . . . . . . . . . . . . . . . . . 1 . . . . . . Bothacking | -11 -10 -10 -10 -9 -8 -7 -7 -7 -7 -7 -6 -6 -6 -6 -6 -5 -5 -5 -5 -5 -5 -4 -4 -4 -4 -3 -3 -3 ------------ Run | Scr Mat Min Exi Min Mat Fac Low Low Zio Dee Pro Fac Low Low Dat Pro Fac Ext Cet Arc Hub Fac Upp Upp War Pro Res Qua Used RIF Installer . | . . . . . . . . . . . . . . . . . . . . . . . . . . . . . Robots Hacked . | . . . . . . . . . . . . . . . . . . . . . . . . . . . . . Non-combat . | . . . . . . . . . . . . . . . . . . . . . . . . . . . . . Combat . | . . . . . . . . . . . . . . . . . . . . . . . . . . . . . Robot Hacks Applied . | . . . . . . . . . . . . . . . . . . . . . . . . . . . . . Relay Couplers Released 6 | . . . . . . . . . . . . 4 . . . . . . . . 2 . . . . . . . Machine Destruction 2 | . . . . . . . . . . . . . . . . . . . . . 2 . . . . . . . Programmers 4 | . . . . . . . . . . . . 4 . . . . . . . . . . . . . . . . Robots Rewired 20 | . . . . . . . . . . . . 1 . . . . . 19 . . . . . . . . . . Allies Hacked . | . . . . . . . . . . . . . . . . . . . . . . . . . . . . . Hacks Repelled . | . . . . . . . . . . . . . . . . . . . . . . . . . . . . . Allies | -11 -10 -10 -10 -9 -8 -7 -7 -7 -7 -7 -6 -6 -6 -6 -6 -5 -5 -5 -5 -5 -5 -4 -4 -4 -4 -3 -3 -3 -------- Run | Scr Mat Min Exi Min Mat Fac Low Low Zio Dee Pro Fac Low Low Dat Pro Fac Ext Cet Arc Hub Fac Upp Upp War Pro Res Qua Total Allies 48 | . . 1 . 2 . . . . 4 . . 4 . . . 1 1 30 5 . . . . . . . . . Largest Group 13 | . . 1 1 2 2 . . . 4 4 . 4 . . . 1 1 13 13 2 2 . . . . . . . Highest-Rated Group 479 | . . 31 31 45 45 . . . 233 233 . 130 . . . 94 10 479 477 188 188 . . . . . . . Highest-Rated Ally 156 | . . 31 31 31 31 . . . 94 94 . 37 . . . 94 10 156 156 94 94 . . . . . . . Total Orders 10 | . . . . . . . . . . . 1 2 . . . . . . . . . . . . . . 4 3 STAY 1 | . . . . . . . . . . . . 1 . . . . . . . . . . . . . . . . GOTO 1 | . . . . . . . . . . . . . . . . . . . . . . . . . . . 1 . FOLLOW 2 | . . . . . . . . . . . . 1 . . . . . . . . . . . . . . 1 . EXPLORE 6 | . . . . . . . . . . . 1 . . . . . . . . . . . . . . . 2 3 Ally Attacks 501 | . . 2 . . 19 . . . . 115 . 18 . . . 5 . 171 114 17 40 . . . . . . . Total Damage 12946 | . . 42 . . 337 . . . . 2427 . 271 . . . 148 . 4468 3085 548 1620 . . . . . . . Kills 95 | . . 2 . . 6 . . . . 21 . 1 . . . 1 . 37 11 3 13 . . . . . . . Allies Corrupted 1 | . . . . . . . . . . . . 1 . . . . . . . . . . . . . . . . Allies Melted . | . . . . . . . . . . . . . . . . . . . . . . . . . . . . . Intel | -11 -10 -10 -10 -9 -8 -7 -7 -7 -7 -7 -6 -6 -6 -6 -6 -5 -5 -5 -5 -5 -5 -4 -4 -4 -4 -3 -3 -3 ------- Run | Scr Mat Min Exi Min Mat Fac Low Low Zio Dee Pro Fac Low Low Dat Pro Fac Ext Cet Arc Hub Fac Upp Upp War Pro Res Qua Robot Analysis Total 3 | . 1 . . . 2 . . . . . . . . . . . . . . . . . . . . . . . Derelict Logs Recovered 16 | . . 2 . 2 . . 2 . 2 . 1 . 2 1 . 3 . . . . . . 1 . . . . . Drone Launches 7 | . . . . . . . . . . 1 . . . . . . . . . . . . . . . . 3 3 Drone Recoveries . | . . . . . . . . . . . . . . . . . . . . . . . . . . . . . Exploration | -11 -10 -10 -10 -9 -8 -7 -7 -7 -7 -7 -6 -6 -6 -6 -6 -5 -5 -5 -5 -5 -5 -4 -4 -4 -4 -3 -3 -3 ------------- Run | Scr Mat Min Exi Min Mat Fac Low Low Zio Dee Pro Fac Low Low Dat Pro Fac Ext Cet Arc Hub Fac Upp Upp War Pro Res Qua Turns Passed 30951 | 138 1087 933 332 336 2445 2547 554 375 1613 2632 293 2850 672 410 151 741 2912 1451 603 718 741 2046 289 648 527 495 907 1505 Spaces Moved 15812 | 66 550 597 228 214 1060 1414 323 223 1033 1376 172 1445 369 215 95 397 1490 726 291 150 385 905 166 244 329 306 447 596 Core 7 | 7 . . . . . . . . . . . . . . . . . . . . . . . . . . . . Treads 391 | 59 137 . . . 195 . . . . . . . . . . . . . . . . . . . . . . . Legs 13707 | . . . . . 610 1414 323 223 1033 1376 172 1445 369 215 95 397 1490 726 291 150 385 905 166 244 329 306 447 596 Wheels 1707 | . 413 597 228 214 255 . . . . . . . . . . . . . . . . . . . . . . . Hover . | . . . . . . . . . . . . . . . . . . . . . . . . . . . . . Flight . | . . . . . . . . . . . . . . . . . . . . . . . . . . . . . Fastest Speed 50 | 50 100 140 140 140 130 150 150 150 150 150 156 156 156 156 156 156 150 150 150 150 150 150 150 150 150 150 156 156 Average Speed 156 | 151 143 145 140 149 172 154 165 161 154 160 156 156 156 156 156 156 156 150 160 150 150 150 150 150 150 150 166 173 Slowest Speed 330 | 160 180 150 140 150 330 180 180 180 180 180 156 205 156 156 156 205 210 180 180 150 180 180 150 150 180 150 185 270 Overloaded Moves . | . . . . . . . . . . . . . . . . . . . . . . . . . . . . . Propulsion Burnouts . | . . . . . . . . . . . . . . . . . . . . . . . . . . . . . Robots Hopped . | . . . . . . . . . . . . . . . . . . . . . . . . . . . . . Cave-ins Triggered . | . . . . . . . . . . . . . . . . . . . . . . . . . . . . . Exploration Rate (%) 57 | 4 94 90 60 53 88 49 50 42 86 91 98 30 48 36 70 54 26 80 79 75 45 29 43 39 59 62 17 66 Regions Visited 28 Branch Regions 21 Pre-discovered Areas 11 | . 1 2 1 2 . 2 . . 1 . 1 . . . 1 . . . . . . . . . . . . . Known Exits Taken 7 | . . . . . . 1 . . . . 1 1 . . . 1 . . . . 1 1 . . . . 1 . Unknown Exits Taken 21 | 1 1 1 1 1 1 . 1 1 1 1 . . 1 1 1 . 1 1 1 1 . . 1 1 1 1 . . Scrap Searched 21 | . . 2 . 1 . . 3 3 1 . 2 . 2 4 . 1 . . . . . . . 1 . 1 . . Spaces Dug 118 | . . . . . 5 3 . . . 1 . 24 9 3 . . 2 4 . . 1 29 11 . 1 11 2 12 Terrain Destroyed 875 | 4 6 42 . 8 34 8 . . . 1 . 167 12 8 . 28 62 14 63 3 183 103 12 22 1 29 10 55 Melee 34 | . . . . . 1 3 . . . 1 . 12 . . . . . . . . . 6 11 . . . . . Projectile 219 | . . . . . 4 . . . . . . 36 7 8 . 6 22 11 3 3 20 39 1 2 1 5 10 41 AOE 622 | 4 6 42 . 8 29 5 . . . . . 119 5 . . 22 40 3 60 . 163 58 . 20 . 24 . 14 Actions | -11 -10 -10 -10 -9 -8 -7 -7 -7 -7 -7 -6 -6 -6 -6 -6 -5 -5 -5 -5 -5 -5 -4 -4 -4 -4 -3 -3 -3 --------- Run | Scr Mat Min Exi Min Mat Fac Low Low Zio Dee Pro Fac Low Low Dat Pro Fac Ext Cet Arc Hub Fac Upp Upp War Pro Res Qua Total 20115 | 87 705 643 241 225 1427 1649 335 233 1052 1680 185 1788 433 256 98 465 1851 1017 378 607 504 1383 184 509 355 331 571 923 Wait 1748 | . 30 25 12 . 95 46 1 1 7 120 8 105 21 14 . 11 99 21 16 413 29 189 3 252 4 7 68 151 Move 15784 | 65 549 596 227 213 1059 1413 322 222 1032 1375 171 1444 368 214 94 396 1489 725 290 149 384 904 165 243 328 305 446 596 Hop . | . . . . . . . . . . . . . . . . . . . . . . . . . . . . . Pick Up 225 | 6 24 1 1 3 36 21 . 2 5 17 . 21 5 2 . 4 25 3 5 2 3 23 . 2 1 1 4 8 Fast Attach 165 | 7 1 . . . 19 7 . . . 20 . 11 2 2 2 2 23 6 6 7 17 17 . 1 5 1 4 5 Attach 116 | . 5 . . . 17 6 . 2 1 6 . 12 4 1 . 3 15 2 2 1 2 18 . 1 1 4 2 11 Detach 20 | . . . . . 5 . . . . 1 . 1 2 . . . 2 . . . . 2 . . 1 1 3 2 Swap 272 | 1 6 8 . 3 16 29 4 2 2 24 . 36 4 1 . 10 25 7 14 2 10 40 3 . 2 3 8 12 Drop 353 | . 13 2 1 3 35 38 2 1 5 44 . 26 4 2 2 7 46 10 13 7 18 35 . 1 6 1 11 20 Fire 1127 | 8 77 11 . 3 144 84 6 3 . 57 6 119 23 20 . 32 120 41 32 16 41 129 2 9 7 8 23 106 Melee 71 | . . . . . 1 5 . . . 16 . 12 . . . . . . . 10 . 15 11 . . . 1 . Ram . | . . . . . . . . . . . . . . . . . . . . . . . . . . . . . Kick 4 | . . . . . . . . . . . . . . . . . 2 . . . . 2 . . . . . . Crush . | . . . . . . . . . . . . . . . . . . . . . . . . . . . . . Escape Stasis 40 | . . . . . . . . . . . . . . . . . 5 15 . . . 9 . . . . . 11 Rewire 188 | . . . . . . . . . . . . 1 . . . . . 187 . . . . . . . . . . Trap . | . . . . . . . . . . . . . . . . . . . . . . . . . . . . . Miscellaneous 2 | . . . . . . . . . . . . . . . . . . . . . . . . . . . 1 1 Route ------- -11/Scrapyard -10/Materials (discovered 4 exits: [*Mat x3] / [*Min]) -10/Mines (discovered 3 exits: [*Mat x2] / *Exi) -10/Exiles -9/Mines -8/Materials (discovered 3 exits: *Fac x3) -7/Factory (discovered 5 exits: *Fac / *Sto x2 / *Low x2) -7/Lower Caves -7/Lower Caves -7/Zion (discovered 2 exits: [*Dee] / [*Pro]) -7/Deep Caves -6/Proximity Caves -6/Factory (discovered 4 exits: *Fac x2 / *Low x2) -6/Lower Caves -6/Lower Caves -6/Data Miner -5/Proximity Caves -5/Factory (discovered 4 exits: *Fac x2 / Upp / *Ext) -5/Extension (discovered 2 exits: *Fac / *Cet) -5/Cetus (discovered 2 exits: *Fac / [*Arc]) -5/Archives (discovered 3 exits: *Fac / *Hub x2) -5/Hub_04(d) (discovered 4 exits: *Fac x4) -4/Factory (discovered 3 exits: *Res / *Upp x2) -4/Upper Caves -4/Upper Caves (discovered 2 exits: Res / *War) -4/Warlord -3/Proximity Caves -3/Research (discovered 3 exits: Arm / *Qua x2) -3/Quarantine (discovered 1 exit: Res) History --------- Turn | Location | Event 25 | -11/Scrapyard | Discovered new exit (range 15) 139 | -11/Scrapyard | Entered Materials 305 | -10/Materials | Build established: Mutant 650 | -10/Materials | Discovered new exit (range 15) 693 | -10/Materials | Core integrity fell below 50% 726 | -10/Materials | Discovered new exit (range 13) 1056 | -10/Materials | Build established: Hauler-Mutant 1072 | -10/Materials | Discovered new exit (range 4) 1075 | -10/Materials | Central database locked down 1203 | -10/Materials | Discovered new exit (range 16) 1226 | -10/Materials | Entered Mines 1227 | -10/Mines | Met a Derelict bent on vengeance 1268 | -10/Mines | Escorted by a lone wolf Derelict 1288 | -10/Mines | Learned location of Storage (-7) 1516 | -10/Mines | Discovered new exit (range 14) 2134 | -10/Mines | Discovered new exit (range 11) 2150 | -10/Mines | Deemed a non-threat by the Exiles lab entrance 2150 | -10/Mines | Discovered new exit (range 5) 2159 | -10/Mines | Entered Exiles 2159 | -10/Exiles | Accompanied by 1 ally 2204 | -10/Exiles | Met 8R-AWN 2230 | -10/Exiles | Met EX-HEX 2283 | -10/Exiles | Met EX-DEC 2290 | -10/Exiles | Learned location of Zion (-7) 2312 | -10/Exiles | Met EX-BIN 2466 | -10/Exiles | Discovered new exit (range 10) 2491 | -10/Exiles | Entered Mines 2581 | -9/Mines | Learned Materials trap positions 2790 | -9/Mines | A weapon hastily lodged in a ceiling crevice suddenly fell to the ground 2815 | -9/Mines | Discovered new exit (range 7) 2827 | -9/Mines | Entered Materials 2827 | -8/Materials | Accompanied by 2 allies 2827 | -8/Materials | Evolved 4 slots: Propulsion x1, Utility x3 2828 | -8/Materials | Loaded intel: 14 trap records 2832 | -8/Materials | Led the pair of lost Derelicts to an unsafe place 3580 | -8/Materials | Garrison activated, responded to threat 4582 | -8/Materials | Discovered new exit (range 8) 4817 | -8/Materials | Discovered new exit (range 5) 5106 | -8/Materials | Discovered new exit (range 6) 5272 | -8/Materials | Entered Factory 5272 | -7/Factory | Evolved 2 slots: Utility x2 5273 | -7/Factory | Identified exit to Storage 5575 | -7/Factory | Discovered new exit (range 19) 6804 | -7/Factory | Discovered new exit (range 21) 6936 | -7/Factory | Identified exit to Factory 7068 | -7/Factory | Identified exit to Lower Caves 7819 | -7/Factory | Entered Lower Caves 8004 | -7/Lower Caves | Encountered a Warlord checkpoint 8252 | -7/Lower Caves | Learned 8 Factory zone layouts 8349 | -7/Lower Caves | Discovered new exit (range 13) 8373 | -7/Lower Caves | Entered another Lower Caves area 8469 | -7/Lower Caves | Enh. Autogun stolen by Master Thief 8471 | -7/Lower Caves | Beamcaster stolen by Master Thief 8723 | -7/Lower Caves | Discovered new exit (range 10) 8748 | -7/Lower Caves | Entered Zion 8831 | -7/Zion | Discovered new exit (range 10) 8868 | -7/Zion | Gained Derelict followers 8926 | -7/Zion | System corruption cleaned by Quarantine Array 9033 | -7/Zion | Learned 12 Factory zone layouts 9089 | -7/Zion | Learned Factory fabricator intel 9155 | -7/Zion | Learned Factory security intel 9161 | -7/Zion | Given A8's code to call for help 9874 | -7/Zion | Found Prototype Processor 9880 | -7/Zion | Found Prototype Processor 9959 | -7/Zion | Learned location of Testing (-2) 9983 | -7/Zion | Acquired unknown access codes intercepted by a Zionite 10311 | -7/Zion | Enhanced Grunt warped into view, answering call for help 10318 | -7/Zion | Enhanced Grunt warped into view, answering call for help 10319 | -7/Zion | Opened final containment barrier to the Deep Caves 10346 | -7/Zion | Discovered new exit (range 3) 10346 | -7/Zion | Saw the warning signs outside the Deep Caves entrance 10361 | -7/Zion | Entered Deep Caves 10361 | -7/Deep Caves | Accompanied by 4 allies 10642 | -7/Deep Caves | Attacked by Z-Imprinter 10648 | -7/Deep Caves | Destroyed Z-Imprinter 10690 | -7/Deep Caves | Found Prototype Protection 10690 | -7/Deep Caves | Identified Zio. Weapon Casing 10697 | -7/Deep Caves | Found Zio. Weapon Casing 10843 | -7/Deep Caves | Z-Facility disabled 10871 | -7/Deep Caves | Found Zio. Weapon Casing 11210 | -7/Deep Caves | Found Zio. Weapon Casing 11218 | -7/Deep Caves | Found Zio. Weapon Casing 11330 | -7/Deep Caves | Found Prototype Device 11330 | -7/Deep Caves | Identified Exp. Thermal Shield 11478 | -7/Deep Caves | Spotted as-13440 11486 | -7/Deep Caves | Destroyed as-13440 11552 | -7/Deep Caves | Spotted as-75093 11565 | -7/Deep Caves | Destroyed as-75093 11598 | -7/Deep Caves | Build established: Scavenger-Mutant 11690 | -7/Deep Caves | Triggered Deep Caves wall 11690 | -7/Deep Caves | Spotted AS-89424 11694 | -7/Deep Caves | Exposed GOLEM chamber 11694 | -7/Deep Caves | Spotted AS-44239 11706 | -7/Deep Caves | Destroyed AS-44239 11715 | -7/Deep Caves | Destroyed AS-89424 11740 | -7/Deep Caves | Triggered Deep Caves wall 11773 | -7/Deep Caves | Destroyed 31 combat bots 11848 | -7/Deep Caves | Found Prototype Device 11848 | -7/Deep Caves | Identified Supersonic Drone Bay 11873 | -7/Deep Caves | Found GOLEM Unit 11883 | -7/Deep Caves | Found GOLEM Unit 11899 | -7/Deep Caves | Found GOLEM Unit 12235 | -7/Deep Caves | Build established: Hauler-Mutant 12284 | -7/Deep Caves | Found Zio. Weapon Casing 12288 | -7/Deep Caves | Found Prototype Protection 12288 | -7/Deep Caves | Identified Zio. Heavy Carapace 12716 | -7/Deep Caves | Found Surveybot 24 Chip 12979 | -7/Deep Caves | Discovered new exit (range 8) 12993 | -7/Deep Caves | Entered Proximity Caves 12993 | -6/Proximity Caves | Accompanied by 1 ally 13005 | -6/Proximity Caves | Discovered exit to Factory (range 144) 13286 | -6/Proximity Caves | Entered Factory 13286 | -6/Factory | Evolved 2 slots: Power x1, Utility x1 13287 | -6/Factory | Identified exit to Factory 13289 | -6/Factory | Loaded intel: 6 fabricator locations 13305 | -6/Factory | Garrison activated, responded to threat 13432 | -6/Factory | Identified exit to Lower Caves 13506 | -6/Factory | Repaired Imp. EM Pulse Cannon 13583 | -6/Factory | Allied Derelicts emerged from ambush trap array 13663 | -6/Factory | Build established: Scavenger-Mutant 14292 | -6/Factory | P-60 Hacker assimilated allied AN-L2L(g) 14295 | -6/Factory | P-60 Hacker assimilated allied Angel 5a 14569 | -6/Factory | Discovered exit to Factory (range 15) 14935 | -6/Factory | Identified Exp. Armor Integrity Analyzer 14935 | -6/Factory | Identified Exp. Melee Analysis Suite 15386 | -6/Factory | First assault squad dispatched 15435 | -6/Factory | Fabricated Lrg. Storage Unit? 15436 | -6/Factory | Garrison activated, responded to threat 15620 | -6/Factory | Fabricated Lrg. Storage Unit? 15688 | -6/Factory | Fabricated Lrg. Storage Unit (x1) 16136 | -6/Factory | Entered Lower Caves 16427 | -6/Lower Caves | Learned Factory stockpile data 16701 | -6/Lower Caves | System corruption reached 10% 16714 | -6/Lower Caves | Discovered new exit (range 8) 16730 | -6/Lower Caves | Learned Factory terminal intel 16731 | -6/Lower Caves | Lost 3 parts (3u) 16808 | -6/Lower Caves | Entered another Lower Caves area 17064 | -6/Lower Caves | Discovered new exit (range 7) 17218 | -6/Lower Caves | Entered Data Miner 17219 | -6/Data Miner | Discovered new exit (range 6) 17249 | -6/Data Miner | Met Data Miner 17279 | -6/Data Miner | Acquired the access code to Warlord's prototype stash 17279 | -6/Data Miner | Learned location of Section 7 (-3) 17304 | -6/Data Miner | Received God Mode back door access code from Data Miner 17369 | -6/Data Miner | Entered Proximity Caves 17379 | -5/Proximity Caves | Escorted by Enhanced Grunt 17468 | -5/Proximity Caves | Learned Factory non-interactive machine intel 17487 | -5/Proximity Caves | Learned Factory emergency access door positions 18110 | -5/Proximity Caves | Entered Factory 18110 | -5/Factory | Evolved 2 slots: Utility x2 18111 | -5/Factory | Identified exit to Upper Caves 18114 | -5/Factory | Loaded intel: 201 non-interactive machine locations 18115 | -5/Factory | Loaded intel: 22 terminal locations 18151 | -5/Factory | Discovered new exit (range 15) 18427 | -5/Factory | Fabricated Lgt. Regenerative Plating (x1) 18518 | -5/Factory | Local fabrication network quarantined 18526 | -5/Factory | Fabricated Lgt. Regenerative Plating? 18669 | -5/Factory | Spotted B-75 Beast 18710 | -5/Factory | First assault squad dispatched 19831 | -5/Factory | Destroyed 7 combat bots 19877 | -5/Factory | Discovered new exit (range 11) 19948 | -5/Factory | Lost 4 parts (1p1u2w) 20174 | -5/Factory | Build established: Hauler-Mutant 20515 | -5/Factory | Repaired Adv. EMP Blaster 20526 | -5/Factory | Discovered new exit (range 12) 20678 | -5/Factory | Incoming investigation squad redirected 20742 | -5/Factory | Destroyed 8 combat bots 21022 | -5/Factory | Entered Extension 21067 | -5/Extension | Rescued a captive Derelict 21068 | -5/Extension | Rescued a captive Derelict 21252 | -5/Extension | Rescued a captive Derelict 21307 | -5/Extension | Rescued a captive Derelict 21313 | -5/Extension | Rescued a captive Derelict 21319 | -5/Extension | Rescued A7 21622 | -5/Extension | First assault squad dispatched 21640 | -5/Extension | Incoming assault squad redirected 21662 | -5/Extension | Build established: Commander-Mutant 21686 | -5/Extension | Spotted B-75 Beast 21694 | -5/Extension | Allies destroyed B-75 Beast 21708 | -5/Extension | Spotted B-75 Beast 21739 | -5/Extension | Allies destroyed B-75 Beast 21757 | -5/Extension | Destroyed 7 combat bots 21772 | -5/Extension | Disrupted transfer network 21944 | -5/Extension | Rescued a captive Derelict 21944 | -5/Extension | Rescued a captive Derelict 22054 | -5/Extension | Build established: Scavenger-Mutant 22241 | -5/Extension | Rescued a captive Derelict 22250 | -5/Extension | Incoming assault squad redirected 22298 | -5/Extension | Rescued a captive Derelict 22298 | -5/Extension | Rescued a captive Derelict 22434 | -5/Extension | Discovered new exit (range 10) 22435 | -5/Extension | Discovered new exit (range 6) 22473 | -5/Extension | Entered Cetus 22473 | -5/Cetus | Accompanied by 13 allies 22478 | -5/Cetus | Acquired a Cetus Manufacturing Module code from A7 22495 | -5/Cetus | Spotted Cetus Guard 22495 | -5/Cetus | Spotted Cetus Guard 22499 | -5/Cetus | Spotted Cetus Guard 22501 | -5/Cetus | Allies destroyed Cetus Guard 22501 | -5/Cetus | Spotted Cetus Guard 22506 | -5/Cetus | Extracted ID and sensor layout for unrecognized location from A7's data core 22510 | -5/Cetus | Found Prototype Protection 22510 | -5/Cetus | Identified Med. Regenerative Plating 22518 | -5/Cetus | Allies destroyed Cetus Guard 22521 | -5/Cetus | Allies destroyed Cetus Guard 22562 | -5/Cetus | Destroyed Cetus Guard 22583 | -5/Cetus | Destroyed 9 combat bots 22649 | -5/Cetus | Started Cetus Manufacturing Module 22674 | -5/Cetus | Manufactured an Enhanced Grunt 22699 | -5/Cetus | Manufactured an Enhanced Grunt 22724 | -5/Cetus | Manufactured an Enhanced Grunt 22749 | -5/Cetus | Manufactured an Enhanced Grunt 22774 | -5/Cetus | Manufactured an Enhanced Grunt 22777 | -5/Cetus | Discovered new exit (range 15) 22821 | -5/Cetus | Spotted Cetus Guard 22822 | -5/Cetus | Spotted Cetus Guard 22827 | -5/Cetus | Spotted Cetus Guard 22829 | -5/Cetus | Spotted Cetus Guard 22838 | -5/Cetus | Destroyed Cetus Guard 22840 | -5/Cetus | Destroyed Cetus Guard 22841 | -5/Cetus | Destroyed Cetus Guard 22842 | -5/Cetus | Destroyed Cetus Guard 22849 | -5/Cetus | Discovered new exit (range 15) 22858 | -5/Cetus | Met Revision 17 23076 | -5/Cetus | Entered Archives 23076 | -5/Archives | Accompanied by 2 allies 23152 | -5/Archives | Discovered new exit (range 13) 23166 | -5/Archives | Discovered new exit (range 15) 23245 | -5/Archives | Discovered new exit (range 14) 23794 | -5/Archives | Entered Hub_04(d) 23794 | -5/Hub_04(d) | Accompanied by 2 allies 23994 | -5/Hub_04(d) | Identified exit to Factory 24003 | -5/Hub_04(d) | Incoming investigation squad redirected 24011 | -5/Hub_04(d) | Incoming assault squad redirected 24133 | -5/Hub_04(d) | Core integrity fell below 50% 24481 | -5/Hub_04(d) | Network Hub disabled 24527 | -5/Hub_04(d) | Spotted Lightning 24531 | -5/Hub_04(d) | Spotted Lightning 24532 | -5/Hub_04(d) | Spotted Lightning 24535 | -5/Hub_04(d) | Entered Factory 24535 | -4/Factory | Evolved 2 slots: Utility x2 24811 | -4/Factory | Fabricated Lrg. Storage Unit (x1) 24833 | -4/Factory | Discovered new exit (range 19) 24856 | -4/Factory | Fabricated Lrg. Storage Unit (x1) 24884 | -4/Factory | Fabricated Hcp. Storage Unit (x1) 24940 | -4/Factory | Incoming investigation squad redirected 24964 | -4/Factory | Fabricated Exp. Terrain Scanner? 25355 | -4/Factory | Identified exit to Upper Caves 25443 | -4/Factory | Destroyed 8 combat bots 25947 | -4/Factory | Repaired Exp. Terrain Scanner 26194 | -4/Factory | Repaired Adv. EMP Blaster 26495 | -4/Factory | Lost 6 parts (1p2n3u) 26511 | -4/Factory | Destroyed 14 combat bots 26535 | -4/Factory | First assault squad dispatched 26581 | -4/Factory | Entered Upper Caves 26744 | -4/Upper Caves | Learned location of 1 exit from Research 26822 | -4/Upper Caves | Discovered new exit (range 27) 26834 | -4/Upper Caves | Attracted the attention of an 0b10 checkpoint 26870 | -4/Upper Caves | Entered another Upper Caves area 26874 | -4/Upper Caves | Discovered new exit (range 30) 27397 | -4/Upper Caves | Discovered new exit (range 29) 27518 | -4/Upper Caves | Entered Warlord 27555 | -4/Warlord | Discovered new exit (range 26) 27571 | -4/Warlord | System corruption cleaned by Quarantine Array 27775 | -4/Warlord | Met Warlord 27789 | -4/Warlord | Opened Warlord's prototype stash 27794 | -4/Warlord | Found Prototype Reactor 27800 | -4/Warlord | Warlord's base attacked by MAIN.C 27802 | -4/Warlord | Found Prototype Device 27802 | -4/Warlord | Identified Exp. Focal Shield 27982 | -4/Warlord | Opened side exit 27991 | -4/Warlord | Core integrity fell below 50% 28045 | -4/Warlord | Entered Proximity Caves 28093 | -3/Proximity Caves | Spotted B-86 Titan 28389 | -3/Proximity Caves | Discovered new exit (range 29) 28540 | -3/Proximity Caves | Entered Research 28540 | -3/Research | Evolved 2 slots: Utility x2 28541 | -3/Research | Identified exit to Armory 28740 | -3/Research | Revision forces began assault on 0b10 28755 | -3/Research | Met up with Revision 17++ 28910 | -3/Research | Identified exit to Quarantine 29240 | -3/Research | Research terminal network offline 29326 | -3/Research | Repaired Broken Adv. EMP Blaster? 29390 | -3/Research | Build established: Scavenger-Golem 29447 | -3/Research | Entered Quarantine 29453 | -3/Quarantine | Cryocooling Duct disabled 29463 | -3/Quarantine | Found Gamma Bomb Array 29468 | -3/Quarantine | Ambient heat levels rising (+20) 29468 | -3/Quarantine | Non-combat units ordered to evacuate 29484 | -3/Quarantine | Found Alien Artifact 29563 | -3/Quarantine | Identified Stasis Generator 29637 | -3/Quarantine | Found Alien Artifact 29637 | -3/Quarantine | Identified Phase Armor 29714 | -3/Quarantine | Identified exit to Research 29983 | -3/Quarantine | Met incapacitated Sigix Warrior 29983 | -3/Quarantine | Lockdown squad dispatched 30202 | -3/Quarantine | Spotted Alpha 7 30292 | -3/Quarantine | Core integrity fell below 50% 30331 | -3/Quarantine | Destroyed Alpha 7 30337 | -3/Quarantine | Found Prototype Processor 30337 | -3/Quarantine | Identified Exp. Target Analyzer 30349 | -3/Quarantine | Lost 5 parts (2p1n1u1w) 30350 | -3/Quarantine | Found Alien Launcher 30504 | -3/Quarantine | Found Alien Artifact 30727 | -3/Quarantine | Core integrity fell below 20% 30730 | -3/Quarantine | Build established: Hauler-Golem 30849 | -3/Quarantine | Found Alien Artifact 30938 | -3/Quarantine | System corruption reached 10% 30945 | -3/Quarantine | Identified Vortex Chain Reactor 30952 | -3/Quarantine | Destroyed by P-80 Master with Gamma Rifle Last Messages --------------- 30843_ Slug penetrates Suspension Chamber. 30843_ Suspension Chamber breached. 30846_ 4L5YDQQM TS9#1OQ>5SV22A2F&J/>6 30849_ Acquired Alien Artifact. 30869_ System corrupted: Heat flow error (+145). 30918_ Connecting with Scanalyzer... 30918_ ALERT: Suspicious activity at Scanalyzer Q001. Dispatching Investigation squad. 30927_ GOLEM Unit destroyed. 30933_ System corrupted: Asb. Focal Cannon failed to cycle. 30936_ Scanalyzer disabled. 30939_ Enh. Gauss Cannon destroyed. 30939_ Exp. Target Analyzer destroyed. 30942_ Critical hit. 30942_ Lgt. Regenerative Plating destroyed. 30942_ Asb. Nanovents destroyed. 30944_ Dropped Lgt. Antimatter Reactor. 30945_ Identified Vortex Chain Reactor. 30951_ Critical hit. 30951_ Asb. Focal Cannon destroyed. Map ----- +----------------------------------------------------+ | | | | | | | | | | | | | | | | | | | | | | | | | | | | | | | | | | | | | | | | | #######################?#????????????????????????? | | #################################????????????????? | | #####################?# ##???????????????? | | ####################### """ """ ;####;###????????? | | ####################?## """S pp/ #????????? | | ####################### @ p ; #????????? | | #######################;######### """ #????????? | | ##################"##??????# """ #????????? | | """" ######## = # | #?????? """ #????????? | | """" ######## # ###### #????????? | | """" ######## """ + ????????? | | """" ######## """ # ###### ????????? | | ######## """ # #?????? ?????????? | | """" ######## ## ##?????? #######?????????? | | """" ################ #?????? ????????????????? | | """" ################ ##????? ????????????????? | | """" ######### "T + #??????##????????????????? | | ######### "" # ##???????????????????????? | | #########"" # #????????????????????????? | | ##############" # #????????????????????????? | | ##########"" # #????????????????????????? | | "" ########## "" # #????????????????????????? | | """ ########## "" # #????????????????????????? | | ################## ##???